fUST/lending_fUST_20250711
["ID","MTS","AMOUNT","RATE_DAILY","PERIOD"]
[371207195,1752249048991,-460.0,0.00016712,2]
[371207197,1752249049003,-460.0,0.00016712,2]
[371207198,1752249049015,-460.0,0.00016712,2]
[371207200,1752249049028,-460.0,0.00016712,2]
[371207201,1752249049040,-284.68798661,0.00016749,2]
[371207202,1752249049053,-708.79139095,0.00016785,2]
[371207204,1752249049065,-3370.3901567,0.000169,2]
[371207205,1752249049077,-160.0,0.00016906,2]
[371207206,1752249049090,-214.21419754,0.00016906,2]
[371207208,1752249049103,-848.8160226,0.00016906,2]
[371207209,1752249049115,-12593.36377651,0.00016906,2]
[371207210,1752249049125,-215.34660517,0.00016906,2]
[371207217,1752249049321,-230.60106897,0.00016906,2]
[371207218,1752249049338,-838.22799064,0.00016906,2]
[371207220,1752249049349,-160.0,0.00016907,2]
[371207221,1752249049360,-160.0,0.00016907,2]
[371207222,1752249049369,-160.0,0.00016907,2]
[371207224,1752249049381,-165.017512,0.00016924,2]
[371207225,1752249049393,-500.70927642,0.00016973,2]
[371207226,1752249049403,-500.0,0.00016973,2]
[371207228,1752249049416,-301.93817972,0.00016973,2]
[371207229,1752249049426,-258.39173771,0.00016973,2]
[371207230,1752249049437,-500.0,0.00016973,2]
[371207231,1752249049452,-500.0,0.00016973,2]
[371207233,1752249049464,-500.0,0.00016973,2]
[371207234,1752249049475,-500.0,0.00016973,2]
[371207235,1752249049485,-500.50430029,0.00016973,2]
[371207237,1752249049496,-500.0,0.00016973,2]
[371207238,1752249049507,-347.54270452,0.00016973,2]
[371207239,1752249049517,-625.08542561,0.00016973,2]
[371207240,1752249049530,-500.91344477,0.00016973,2]
[371207242,1752249049544,-500.0,0.00016973,2]
[371207243,1752249049554,-500.0,0.00016973,2]
[371207244,1752249049564,-500.0,0.00016973,2]
[371207246,1752249049573,-502.02912215,0.00016973,2]
[371207247,1752249049583,-500.71987847,0.00016973,2]
[371207248,1752249049593,-500.0,0.00016973,2]
[371207250,1752249049603,-500.0,0.00016973,2]
[371207251,1752249049616,-500.0,0.00016973,2]
[371207252,1752249049626,-500.81818195,0.00016973,2]
[371207253,1752249049636,-500.0,0.00016973,2]
[371207255,1752249049646,-500.0,0.00016973,2]
[371207256,1752249049655,-500.0,0.00016973,2]
[371207257,1752249049665,-500.0,0.00016973,2]
[371207258,1752249049675,-500.0,0.00016973,2]
[371207260,1752249049684,-500.0,0.00016973,2]
[371207261,1752249049695,-500.0,0.00016973,2]
[371207262,1752249049704,-500.0,0.00016985,2]
[371207264,1752249049714,-251.28895964,0.00016985,2]
[371207265,1752249049723,-500.0,0.00016985,2]
[371207266,1752249049733,-500.0,0.00016985,2]
[371207268,1752249049743,-500.0,0.00016985,2]
[371207269,1752249049752,-271.8519777,0.00016985,2]
[371207270,1752249049762,-832.73917978,0.00016985,2]
[371207271,1752249049772,-832.73917978,0.00016985,2]
[371207273,1752249049782,-856.53172778,0.00016985,2]
[371207274,1752249049792,-856.53172778,0.00016985,2]
[371207275,1752249049801,-856.53172778,0.00016985,2]
[371207277,1752249049812,-856.53172778,0.00016985,2]
[371207278,1752249049822,-856.53172778,0.00016985,2]
[371207279,1752249049832,-856.53172778,0.00016985,2]
[371207281,1752249049842,-856.53172778,0.00016985,2]
[371207282,1752249049852,-856.53172778,0.00016985,2]
[371207283,1752249049862,-856.53172778,0.00016985,2]
[371207284,1752249049873,-856.53172778,0.00016985,2]
[371207286,1752249049883,-856.53172778,0.00016985,2]
[371207287,1752249049895,-856.53172778,0.00016985,2]
[371207288,1752249049905,-866.60857163,0.00016985,2]
[371207289,1752249049915,-866.60857163,0.00016985,2]
[371207291,1752249049925,-866.60857163,0.00016985,2]
[371207292,1752249049935,-866.60857163,0.00016985,2]
[371207293,1752249049944,-866.60857163,0.00016985,2]
[371207295,1752249049954,-866.60857163,0.00016985,2]
[371207296,1752249049964,-866.60857163,0.00016985,2]
[371207297,1752249049974,-866.60857163,0.00016985,2]
[371207298,1752249049983,-877.14840561,0.00016985,2]
[371207300,1752249049993,-877.14840561,0.00016985,2]
[371207301,1752249050003,-877.14840561,0.00016985,2]
[371207302,1752249050014,-877.14840561,0.00016985,2]
[371207304,1752249050025,-877.14840561,0.00016985,2]
[371207305,1752249050034,-877.14840561,0.00016985,2]
[371207306,1752249050044,-460.0,0.00016986,2]
[371207308,1752249050054,-460.0,0.00016986,2]
[371207309,1752249050063,-460.0,0.00016986,2]
[371207310,1752249050073,-460.0,0.00016986,2]
[371207311,1752249050083,-460.0,0.00016986,2]
[371207313,1752249050094,-460.0,0.00016986,2]
[371207314,1752249050104,-460.0,0.00016986,2]
[371207315,1752249050114,-460.0,0.00016986,2]
[371207316,1752249050123,-247.48185807,0.00016986,2]
[371207318,1752249050133,-460.0,0.00016986,2]
[371207319,1752249050147,-460.0,0.00016986,2]
[371207320,1752249050158,-460.0,0.00016986,2]
[371207322,1752249050168,-460.0,0.00016986,2]
[371207323,1752249050179,-460.0,0.00016986,2]
[371207324,1752249050189,-246.9268053,0.00016986,2]
[371207326,1752249050199,-460.0,0.00016986,2]
[371207327,1752249050210,-721.78,0.00016986,2]
[371207328,1752249050220,-460.0,0.00016986,2]
[371207329,1752249050230,-460.0,0.00016986,2]
[371207331,1752249050240,-460.0,0.00016986,2]
[371207332,1752249050250,-460.0,0.00016986,2]
[371207333,1752249050260,-440.10373848,0.00016986,2]
[371207335,1752249050270,-460.0,0.00016986,2]
[371207336,1752249050280,-460.0,0.00016986,2]
[371207337,1752249050289,-460.0,0.00016986,2]
[371207339,1752249050299,-460.0,0.00016986,2]
[371207340,1752249050308,-460.0,0.00016986,2]
[371207341,1752249050318,-236.91587354,0.00016986,2]
[371207342,1752249050328,-460.0,0.00016986,2]
[371207344,1752249050338,-460.0,0.00016986,2]
[371207345,1752249050348,-460.0,0.00016986,2]
[371207346,1752249050357,-460.0,0.00016986,2]
[371207348,1752249050367,-460.0,0.00016986,2]
[371207349,1752249050376,-460.0,0.00016986,2]
[371207350,1752249050389,-626.83,0.00016986,2]
[371207352,1752249050399,-199.12860494,0.00016986,2]
[371207353,1752249050409,-460.0,0.00016986,2]
[371207354,1752249050420,-460.0,0.00016986,2]
[371207356,1752249050432,-293.3,0.00016986,2]
[371207357,1752249050442,-460.0,0.00016986,2]
[371207358,1752249050452,-460.0,0.00016986,2]
[371207359,1752249050462,-460.0,0.00016986,2]
[371207361,1752249050472,-460.0,0.00016986,2]
[371207362,1752249050482,-460.0,0.00016986,2]
[371207363,1752249050491,-505.60482791,0.00016986,2]
[371207365,1752249050502,-460.0,0.00016986,2]
[371207366,1752249050512,-460.0,0.00016986,2]
[371207367,1752249050522,-460.0,0.00016986,2]
[371207368,1752249050531,-3403.9,0.00016986,2]
[371207370,1752249050540,-460.0,0.00016986,2]
[371207371,1752249050550,-460.0,0.00016986,2]
[371207372,1752249050560,-460.0,0.00016986,2]
[371207374,1752249050570,-460.0,0.00016986,2]
[371207375,1752249050580,-707.99,0.00016986,2]
[371207376,1752249050590,-460.0,0.00016986,2]
[371207378,1752249050599,-460.0,0.00016986,2]
[371207379,1752249050609,-1627.25,0.00016986,2]
[371207380,1752249050619,-460.0,0.00016986,2]
[371207382,1752249050630,-460.0,0.00016986,2]
[371207383,1752249050642,-460.0,0.00016986,2]
[371207384,1752249050652,-675.2,0.00016986,2]
[371207385,1752249050662,-2830.05,0.00016986,2]
[371207387,1752249050671,-460.0,0.00016986,2]
[371207388,1752249050681,-460.0,0.00016986,2]
[371207389,1752249050691,-460.0,0.00016986,2]
[371207391,1752249050701,-460.0,0.00016986,2]
[371207392,1752249050711,-538.16,0.00016986,2]
[371207393,1752249050720,-636.95,0.00016986,2]
[371207395,1752249050730,-460.0,0.00016986,2]
[371207396,1752249050739,-460.0,0.00016986,2]
[371207397,1752249050749,-642.69,0.00016986,2]
[371207398,1752249050758,-328.00761279,0.00016986,2]
[371207400,1752249050767,-460.0,0.00016986,2]
[371207401,1752249050777,-500.0,0.00016986,2]
[371207402,1752249050787,-460.0,0.00016986,2]
[371207404,1752249050797,-460.0,0.00016986,2]
[371207405,1752249050806,-460.0,0.00016986,2]
[371207406,1752249050816,-460.0,0.00016986,2]
[371207407,1752249050827,-460.0,0.00016986,2]
[371207409,1752249050836,-460.0,0.00016986,2]
[371207410,1752249050847,-460.0,0.00016986,2]
[371207411,1752249050857,-2001.06,0.00016986,2]
[371207413,1752249050866,-460.0,0.00016986,2]
[371207414,1752249050876,-460.0,0.00016986,2]
[371207415,1752249050887,-2575.75,0.00016986,2]
[371207417,1752249050897,-480.4,0.00016986,2]
[371207418,1752249050907,-562.86,0.00016986,2]
[371207419,1752249050917,-460.0,0.00016986,2]
[371207421,1752249050927,-460.0,0.00016986,2]
[371207422,1752249050937,-460.0,0.00016986,2]
[371207423,1752249050947,-460.0,0.00016986,2]
[371207424,1752249050958,-460.0,0.00016986,2]
[371207426,1752249050968,-1024.72,0.00016986,2]
[371207427,1752249050979,-460.0,0.00016986,2]
[371207428,1752249050989,-463.4252242,0.00016986,2]
[371207430,1752249050999,-460.0,0.00016986,2]
[371207431,1752249051010,-3289.5,0.00016986,2]
[371207432,1752249051020,-566.77,0.00016986,2]
[371207434,1752249051031,-460.0,0.00016986,2]
[371207435,1752249051041,-460.0,0.00016986,2]
[371207436,1752249051051,-460.0,0.00016986,2]
[371207438,1752249051061,-460.0,0.00016986,2]
[371207439,1752249051072,-523.49,0.00016986,2]
[371207440,1752249051081,-460.0,0.00016986,2]
[371207441,1752249051091,-468.41,0.00016986,2]
[371207443,1752249051101,-694.93,0.00016986,2]
[371207444,1752249051111,-460.0,0.00016986,2]
[371207445,1752249051121,-460.0,0.00016986,2]
[371207447,1752249051131,-2024.89,0.00016986,2]
[371207448,1752249051143,-460.0,0.00016986,2]
[371207449,1752249051153,-943.49,0.00016986,2]
[371207451,1752249051163,-694.51,0.00016986,2]
[371207452,1752249051172,-460.0,0.00016986,2]
[371207453,1752249051182,-460.0,0.00016986,2]
[371207454,1752249051191,-460.0,0.00016986,2]
[371207456,1752249051200,-460.0,0.00016986,2]
[371207457,1752249051210,-870.03,0.00016986,2]
[371207458,1752249051219,-460.0,0.00016986,2]
[371207460,1752249051229,-460.0,0.00016986,2]
[371207461,1752249051238,-2810.9,0.00016986,2]
[371207462,1752249051248,-2223.69,0.00016986,2]
[371207464,1752249051257,-460.0,0.00016986,2]
[371207465,1752249051267,-691.53,0.00016986,2]
[371207466,1752249051278,-612.04,0.00016986,2]
[371207468,1752249051288,-1021.37,0.00016986,2]
[371207469,1752249051298,-493.2,0.00016986,2]
[371207470,1752249051308,-460.0,0.00016986,2]
[371207471,1752249051318,-460.0,0.00016986,2]
[371207473,1752249051327,-460.0,0.00016986,2]
[371207474,1752249051338,-460.0,0.00016986,2]
[371207475,1752249051348,-1639.3,0.00016986,2]
[371207477,1752249051357,-460.0,0.00016986,2]
[371207478,1752249051366,-460.0,0.00016986,2]
[371207479,1752249051376,-460.0,0.00016986,2]
[371207480,1752249051388,-621.97,0.00016986,2]
[371207482,1752249051398,-460.0,0.00016986,2]
[371207483,1752249051409,-1502.64,0.00016986,2]
[371207484,1752249051420,-1811.71,0.00016986,2]
[371207486,1752249051430,-5008.26,0.00016986,2]
[371207487,1752249051440,-712.87,0.00016986,2]
[371207488,1752249051450,-460.0,0.00016986,2]
[371207490,1752249051461,-460.0,0.00016986,2]
[371207491,1752249051470,-460.0,0.00016986,2]
[371207492,1752249051481,-1083.5,0.00016986,2]
[371207494,1752249051491,-535.63,0.00016986,2]
[371207495,1752249051501,-460.0,0.00016986,2]
[371207496,1752249051512,-562.7,0.00016986,2]
[371207498,1752249051521,-460.0,0.00016986,2]
[371207499,1752249051531,-2028.07,0.00016986,2]
[371207500,1752249051540,-460.0,0.00016986,2]
[371207501,1752249051550,-567.87,0.00016986,2]
[371207503,1752249051560,-460.0,0.00016986,2]
[371207504,1752249051569,-460.0,0.00016986,2]
[371207505,1752249051579,-460.0,0.00016986,2]
[371207507,1752249051588,-460.0,0.00016986,2]
[371207508,1752249051599,-460.0,0.00016986,2]
[371207509,1752249051608,-460.0,0.00016986,2]
[371207511,1752249051618,-460.0,0.00016986,2]
[371207512,1752249051628,-1433.84,0.00016986,2]
[371207513,1752249051638,-460.0,0.00016986,2]
[371207515,1752249051648,-583.2499288,0.00016986,2]
[371207516,1752249051658,-1172.41,0.00016986,2]
[371207517,1752249051668,-460.0,0.00016986,2]
[371207518,1752249051678,-460.0,0.00016986,2]
[371207520,1752249051687,-460.0,0.00016986,2]
[371207521,1752249051697,-728.55,0.00016986,2]
[371207522,1752249051707,-460.0,0.00016986,2]
[371207524,1752249051716,-460.0,0.00016986,2]
[371207525,1752249051726,-645.18,0.00016986,2]
[371207526,1752249051736,-460.0,0.00016986,2]
[371207528,1752249051745,-460.0,0.00016986,2]
[371207529,1752249051755,-151.0,0.00016989,2]
[371207530,1752249051764,-151.0,0.00016989,2]
[371207531,1752249051776,-151.0,0.00016989,2]
[371207533,1752249051785,-151.0,0.00016989,2]
[371207534,1752249051795,-151.0,0.00016989,2]
[371207535,1752249051805,-151.0,0.00016989,2]
[371207537,1752249051816,-151.0,0.00016989,2]
[371207538,1752249051827,-151.0,0.00016989,2]
[371207539,1752249051837,-151.0,0.00016989,2]
[371207540,1752249051847,-151.0,0.00016989,2]
[371207542,1752249051857,-151.0,0.00016989,2]
[371207543,1752249051867,-151.0,0.00016989,2]
[371207544,1752249051877,-151.0,0.00016989,2]
[371207546,1752249051889,-151.0,0.00016989,2]
[371207547,1752249051901,-151.0,0.00016989,2]
[371207548,1752249051911,-690.642,0.00016989,2]
[371207550,1752249051922,-1000.0,0.00016989,2]
[371207551,1752249051932,-1000.0,0.00016989,2]
[371207552,1752249051942,-1000.0,0.00016989,2]
[371207554,1752249051952,-1000.0,0.00016989,2]
[371207555,1752249051962,-151.0,0.00016989,2]
[371207556,1752249051972,-151.0,0.00016989,2]
[371207558,1752249051982,-1000.0,0.00016989,2]
[371207559,1752249051992,-151.0,0.00016989,2]
[371207560,1752249052002,-1000.0,0.00016989,2]
[371207561,1752249052012,-25000.0,0.00016989,2]
[371207563,1752249052022,-151.0,0.00016989,2]
[371207564,1752249052032,-1000.0,0.00016989,2]
[371207565,1752249052042,-151.0,0.00016989,2]
[371207566,1752249052052,-151.0,0.00016989,2]
[371207567,1752249052062,-1000.0,0.00016989,2]
[371207568,1752249052072,-151.0,0.00016989,2]
[371207569,1752249052081,-1000.0,0.00016989,2]
[371207570,1752249052091,-23062.71993098,0.00016989,2]
[371207571,1752249052102,-1000.0,0.00016989,2]
[371207572,1752249052112,-1000.0,0.00016989,2]
[371207573,1752249052121,-1000.0,0.00016989,2]
[371207574,1752249052131,-1000.0,0.00016989,2]
[371207575,1752249052142,-1000.0,0.00016989,2]
[371207576,1752249052152,-151.0,0.00016989,2]
[371207577,1752249052161,-1000.0,0.00016989,2]
[371207578,1752249052171,-151.0,0.00016989,2]
[371207579,1752249052181,-151.0,0.00016989,2]
[371207580,1752249052191,-151.0,0.00016989,2]
[371207581,1752249052201,-151.0,0.00016989,2]
[371207582,1752249052211,-151.0,0.00016989,2]
[371207583,1752249052221,-151.0,0.00016989,2]
[371207584,1752249052231,-151.0,0.00016989,2]
[371207586,1752249052241,-151.0,0.00016989,2]
[371207587,1752249052251,-300.0,0.00016989,2]
[371207588,1752249052261,-300.0,0.00016989,2]
[371207589,1752249052271,-300.0,0.00016989,2]
[371207591,1752249052281,-300.0,0.00016989,2]
[371207592,1752249052291,-207.4,0.00016989,2]
[371207593,1752249052301,-300.0,0.00016989,2]
[371207595,1752249052311,-300.0,0.00016989,2]
[371207596,1752249052321,-428.8165762,0.00017,2]
[371207597,1752249052330,-428.8165762,0.00017,2]
[371207598,1752249052340,-428.8165762,0.00017,2]
[371207600,1752249052350,-428.8165762,0.00017,2]
[371207601,1752249052359,-1000.0,0.00017021,2]
[371207602,1752249052369,-503.58664453,0.00017021,2]
[371207604,1752249052378,-1000.0,0.00017021,2]
[371207605,1752249052390,-505.02844875,0.00017021,2]
[371207606,1752249052399,-716.195754,0.00017044,2]
[371207608,1752249052410,-742.6949969,0.00017099,2]
[371207609,1752249052419,-501.4275841,0.00017109,2]
[371207610,1752249052430,-500.0,0.00017109,2]
[371207611,1752249052440,-211.67951022,0.00017109,2]
[371207613,1752249052449,-500.0,0.00017109,2]
[371207614,1752249052459,-502.40999338,0.00017109,2]
[371207615,1752249052468,-500.0,0.00017109,2]
[371207617,1752249052478,-500.0,0.00017109,2]
[371207618,1752249052488,-618.91007682,0.00017109,2]
[371207623,1752249052617,-500.0,0.00017109,2]
[371207624,1752249052632,-500.0,0.00017109,2]
[371207626,1752249052646,-500.0,0.00017109,2]
[371207627,1752249052656,-500.0,0.00017109,2]
[371207628,1752249052666,-503.43673046,0.00017109,2]
[371207630,1752249052676,-165.017512,0.00017144,2]
[371207631,1752249052686,-648.27442719,0.00017154,2]
[371207632,1752249052695,-284.68798661,0.0001716,2]
[371207634,1752249052705,-238.05274476,0.00017176,2]
[371207647,1752249053100,-460.0,0.00016438,2]
[371207648,1752249053110,-125.13551923,0.00016438,2]
[371207650,1752249053122,-204.04298239,0.00016438,2]
[371207651,1752249053131,-228.69594113,0.00016712,2]
[371207652,1752249053147,-314.9530715,0.00016712,2]
[371207653,1752249053157,-90.40538426,0.00016986,2]
[371207655,1752249053182,-369.59461574,0.00016986,2]
[371207657,1752249053191,-300.0,0.00016989,2]
[371207658,1752249053202,-3132.3374118,0.00017176,2]
[371207659,1752249053212,-460.0,0.0001726,2]
[371207660,1752249053221,-460.0,0.0001726,2]
[371207662,1752249053231,-460.0,0.0001726,2]
[371207663,1752249053240,-460.0,0.0001726,2]
[371207664,1752249053250,-516.66103348,0.0001726,2]
[371207666,1752249053260,-460.0,0.0001726,2]
[371207667,1752249053269,-460.0,0.0001726,2]
[371207668,1752249053279,-460.0,0.0001726,2]
[371207670,1752249053290,-460.0,0.0001726,2]
[371207671,1752249053300,-721.78,0.0001726,2]
[371207672,1752249053309,-460.0,0.0001726,2]
[371207674,1752249053320,-460.0,0.0001726,2]
[371207675,1752249053330,-460.0,0.0001726,2]
[371207676,1752249053340,-460.0,0.0001726,2]
[371207678,1752249053349,-460.0,0.0001726,2]
[371207679,1752249053358,-460.0,0.0001726,2]
[371207680,1752249053368,-460.0,0.0001726,2]
[371207681,1752249053377,-550.56949218,0.0001726,2]
[371207683,1752249053390,-503.22817614,0.0001726,2]
[371207702,1752249054002,-300.0,0.00016989,2]
[371207703,1752249054012,-300.0,0.00016989,2]
[371207705,1752249054022,-300.0,0.00016989,2]
[371207706,1752249054031,-6.387649,0.0001726,2]
[371207707,1752249054041,-460.0,0.0001726,2]
[371207708,1752249054051,-460.0,0.0001726,2]
[371207710,1752249054060,-626.83,0.0001726,2]
[371207711,1752249054070,-460.0,0.0001726,2]
[371207712,1752249054080,-460.0,0.0001726,2]
[371207714,1752249054090,-460.0,0.0001726,2]
[371207715,1752249054100,-460.0,0.0001726,2]
[371207716,1752249054110,-460.0,0.0001726,2]
[371207718,1752249054120,-460.0,0.0001726,2]
[371207719,1752249054130,-3403.9,0.0001726,2]
[371207720,1752249054141,-278.0669389,0.0001726,2]
[371207722,1752249054151,-460.0,0.0001726,2]
[371207723,1752249054161,-460.0,0.0001726,2]
[371207724,1752249054171,-707.99,0.0001726,2]
[371207725,1752249054181,-460.0,0.0001726,2]
[371207727,1752249054190,-460.0,0.0001726,2]
[371207728,1752249054200,-1627.25,0.0001726,2]
[371207729,1752249054210,-471.13,0.0001726,2]
[371207731,1752249054220,-460.0,0.0001726,2]
[371207732,1752249054230,-259.28155763,0.0001726,2]
[371207733,1752249054240,-675.2,0.0001726,2]
[371207734,1752249054249,-2830.05,0.0001726,2]
[371207736,1752249054259,-460.0,0.0001726,2]
[371207737,1752249054269,-460.0,0.0001726,2]
[371207738,1752249054278,-460.0,0.0001726,2]
[371207740,1752249054288,-390.74249679,0.0001726,2]
[371207741,1752249054298,-636.95,0.0001726,2]
[371207742,1752249054307,-460.0,0.0001726,2]
[371207744,1752249054317,-460.0,0.0001726,2]
[371207745,1752249054326,-642.69,0.0001726,2]
[371207746,1752249054336,-460.0,0.0001726,2]
[371207747,1752249054346,-460.0,0.0001726,2]
[371207749,1752249054355,-460.0,0.0001726,2]
[371207750,1752249054366,-460.0,0.0001726,2]
[371207751,1752249054375,-460.0,0.0001726,2]
[371207753,1752249054385,-2001.06,0.0001726,2]
[371207754,1752249054396,-460.0,0.0001726,2]
[371207755,1752249054406,-460.0,0.0001726,2]
[371207757,1752249054416,-2575.75,0.0001726,2]
[371207758,1752249054427,-562.86,0.0001726,2]
[371207759,1752249054438,-480.4,0.0001726,2]
[371207761,1752249054448,-545.17356539,0.0001726,2]
[371207762,1752249054457,-240.33207207,0.0001726,2]
[371207763,1752249054467,-1024.72,0.0001726,2]
[371207765,1752249054478,-3289.5,0.0001726,2]
[371207766,1752249054488,-566.77,0.0001726,2]
[371207767,1752249054499,-506.91,0.0001726,2]
[371207768,1752249054509,-460.0,0.0001726,2]
[371207770,1752249054519,-460.0,0.0001726,2]
[371207771,1752249054529,-460.0,0.0001726,2]
[371207772,1752249054539,-523.49,0.0001726,2]
[371207774,1752249054548,-369.16,0.0001726,2]
[371207775,1752249054558,-468.41,0.0001726,2]
[371207776,1752249054568,-694.93,0.0001726,2]
[371207778,1752249054578,-460.0,0.0001726,2]
[371207779,1752249054587,-460.0,0.0001726,2]
[371207780,1752249054597,-2024.89,0.0001726,2]
[371207782,1752249054607,-460.0,0.0001726,2]
[371207783,1752249054616,-943.49,0.0001726,2]
[371207784,1752249054626,-694.51,0.0001726,2]
[371207785,1752249054636,-495.5,0.0001726,2]
[371207787,1752249054646,-460.0,0.0001726,2]
[371207788,1752249054656,-233.882407,0.0001726,2]
[371207789,1752249054666,-870.03,0.0001726,2]
[371207791,1752249054675,-460.0,0.0001726,2]
[371207792,1752249054685,-460.0,0.0001726,2]
[371207793,1752249054695,-2810.9,0.0001726,2]
[371207795,1752249054704,-2223.69,0.0001726,2]
[371207796,1752249054714,-460.0,0.0001726,2]
[371207797,1752249054724,-691.53,0.0001726,2]
[371207798,1752249054733,-612.04,0.0001726,2]
[371207800,1752249054743,-1021.37,0.0001726,2]
[371207801,1752249054753,-460.0,0.0001726,2]
[371207802,1752249054762,-460.0,0.0001726,2]
[371207804,1752249054771,-460.0,0.0001726,2]
[371207805,1752249054781,-151.624962,0.0001726,2]
[371207806,1752249054790,-151.457322,0.0001726,2]
[371207808,1752249054800,-1639.3,0.0001726,2]
[371207809,1752249054810,-460.0,0.0001726,2]
[371207810,1752249054819,-460.0,0.0001726,2]
[371207812,1752249054830,-460.0,0.0001726,2]
[371207813,1752249054839,-460.0,0.0001726,2]
[371207814,1752249054850,-151.0,0.0001726,2]
[371207815,1752249054860,-621.97,0.0001726,2]
[371207816,1752249054870,-1502.64,0.0001726,2]
[371207818,1752249054879,-460.0,0.0001726,2]
[371207819,1752249054891,-1130.78253496,0.0001726,2]
[371207822,1752249054958,-680.92746504,0.0001726,2]
[371207823,1752249054968,-5008.26,0.0001726,2]
[371207825,1752249054977,-712.87,0.0001726,2]
[371207826,1752249054987,-460.0,0.0001726,2]
[371207827,1752249054997,-460.0,0.0001726,2]
[371207828,1752249055006,-1083.5,0.0001726,2]
[371207830,1752249055016,-535.63,0.0001726,2]
[371207831,1752249055025,-460.0,0.0001726,2]
[371207832,1752249055034,-272.51935294,0.0001726,2]
[371207834,1752249055044,-2028.07,0.0001726,2]
[371207835,1752249055054,-567.87,0.0001726,2]
[371207836,1752249055064,-460.0,0.0001726,2]
[371207838,1752249055074,-381.04,0.0001726,2]
[371207839,1752249055083,-200.19957865,0.0001726,2]
[371207840,1752249055093,-460.0,0.0001726,2]
[371207841,1752249055102,-151.0,0.0001726,2]
[371207843,1752249055112,-460.0,0.0001726,2]
[371207844,1752249055121,-1433.84,0.0001726,2]
[371207845,1752249055131,-460.0,0.0001726,2]
[371207847,1752249055143,-1172.41,0.0001726,2]
[371207848,1752249055153,-460.0,0.0001726,2]
[371207849,1752249055162,-460.0,0.0001726,2]
[371207850,1752249055172,-728.55,0.0001726,2]
[371207852,1752249055181,-460.0,0.0001726,2]
[371207853,1752249055191,-460.0,0.0001726,2]
[371207854,1752249055200,-645.18,0.0001726,2]
[371207856,1752249055209,-460.0,0.0001726,2]
[371207857,1752249055219,-460.0,0.0001726,2]
[371207858,1752249055228,-460.0,0.0001726,2]
[371207860,1752249055238,-151.0,0.00017264,2]
[371207861,1752249055248,-151.0,0.00017264,2]
[371207862,1752249055258,-151.0,0.00017264,2]
[371207863,1752249055267,-158.06505,0.00017264,2]
[371207865,1752249055277,-158.06505,0.00017264,2]
[371207866,1752249055286,-151.0,0.00017264,2]
[371207867,1752249055295,-151.0,0.00017264,2]
[371207869,1752249055304,-337.00350337,0.00017264,2]
[371207983,1752249059383,500.0,0.00024657,60]
[371209105,1752249100934,21399.744964,0.00016238,2]
[371209809,1752249146202,473.20267,0.00015898,2]
[371211406,1752249300148,10000.0,0.00024684,60]
[371211470,1752249307112,154.846056,0.00023,30]
[371211475,1752249307472,154.846056,0.00023,30]
[371211479,1752249307878,154.846056,0.00023,30]
[371211489,1752249308804,7988.0,0.00024684,60]
[371212490,1752249467247,24900.0,0.00015412,2]